{"text_format":"1","workbook":"xlsx","n_sheets":2,"sheets":["كشف","خلاصة نهائية"],"not_rendered":{"charts":0,"images":0,"macros":1,"external_links":0,"defined_names":16,"comments":0,"pivot_tables":0},"unopened":[],"bounds":{"document_bytes":16777216,"sheet_cells":100000,"rows_first":2000,"rows_last":500,"rows_between":2000,"halvings":0,"cell_chars":16384,"cell_head_chars":4096},"cells_cut":0,"cells_raw":0,"read":"whole","date_system":"1900"}

{"sheet":"كشف","index":0,"n_rows":73,"n_cols":50,"rows_kept":73,"cut":false,"hidden":false,"merged":[[4,39,4,42],[0,2,0,38],[1,2,1,23],[4,2,6,2],[4,3,6,3],[2,29,2,34],[1,25,1,28],[2,25,2,28],[3,25,3,28],[3,10,3,13],[3,29,3,34],[4,4,4,34],[4,35,4,38],[1,29,1,34]]}
["admin",null,null,null,null,null,null,null,null,null,null,null,null,null,null,null,null,null,null,null,null,null,null,null,null,null,null,null,null,null,null,null,null,null,null,null,null,null,null,null,null,null,null,null,null,null,1,"كانون الثاني",2022,"عرضية "]
[null,null,null,null,null,null,null,null,null,null,null,null,null,null,null,null,null,null,null,null,null,null,null,null,null,"أسماء المعلمين",null,null,null,null,null,null,null,null,null,null,null,null,null,null,null,null,null,null,null,null,2,"شباط",2023,"مرضية "]
[null,null,null,null,null,null,null,null,null,null,null,null,null,null,null,null,null,null,null,null,null,null,null,null,null,"الشهر ","الشهر",null,null,"كانون الثاني",null,null,null,null,null,null,null,null,null,null,null,null,null,null,null,null,3,"آذار",2024,"سنوية "]
[null,null,null,null,null,null,null,null,null,null,null,null,null,null,null,null,null,null,null,null,null,null,null,null,null,"السنة ","السنة",null,null,2023,null,null,null,null,null,null,null,null,null,null,null,null,null,null,null,null,4,"نيسان",2025,"عدم صرف"]
[null,null,"ت","الاسم ",null,null,null,null,null,null,null,null,null,null,null,null,null,null,null,null,null,null,null,null,null,null,null,null,null,null,null,null,null,null,null,"المجموع الاجازات ",null,null,null,"العقوبات ",null,null,null,null,null,null,5,"أيار",2026,"تنبيه"]
[null,null,null,null,{"$f":"IF(E7=\"\",\"\",INDEX({\"السبت\";\"الأحد\";\"الإثنين\";\"الثلاثاء\";\"الأربعاء\";\"الخميس\";\"الجمعة\"},WEEKDAY(E7,16)))","v":"الأحد"},{"$f":"IF(F7=\"\",\"\",INDEX({\"السبت\";\"الأحد\";\"الإثنين\";\"الثلاثاء\";\"الأربعاء\";\"الخميس\";\"الجمعة\"},WEEKDAY(F7,16)))","v":"الإثنين"},{"$f":"IF(G7=\"\",\"\",INDEX({\"السبت\";\"الأحد\";\"الإثنين\";\"الثلاثاء\";\"الأربعاء\";\"الخميس\";\"الجمعة\"},WEEKDAY(G7,16)))","v":"الثلاثاء"},{"$f":"IF(H7=\"\",\"\",INDEX({\"السبت\";\"الأحد\";\"الإثنين\";\"الثلاثاء\";\"الأربعاء\";\"الخميس\";\"الجمعة\"},WEEKDAY(H7,16)))","v":"الأربعاء"},{"$f":"IF(I7=\"\",\"\",INDEX({\"السبت\";\"الأحد\";\"الإثنين\";\"الثلاثاء\";\"الأربعاء\";\"الخميس\";\"الجمعة\"},WEEKDAY(I7,16)))","v":"الخميس"},{"$f":"IF(J7=\"\",\"\",INDEX({\"السبت\";\"الأحد\";\"الإثنين\";\"الثلاثاء\";\"الأربعاء\";\"الخميس\";\"الجمعة\"},WEEKDAY(J7,16)))","v":"الجمعة"},{"$f":"IF(K7=\"\",\"\",INDEX({\"السبت\";\"الأحد\";\"الإثنين\";\"الثلاثاء\";\"الأربعاء\";\"الخميس\";\"الجمعة\"},WEEKDAY(K7,16)))","v":"السبت"},{"$f":"IF(L7=\"\",\"\",INDEX({\"السبت\";\"الأحد\";\"الإثنين\";\"الثلاثاء\";\"الأربعاء\";\"الخميس\";\"الجمعة\"},WEEKDAY(L7,16)))","v":"الأحد"},{"$f":"IF(M7=\"\",\"\",INDEX({\"السبت\";\"الأحد\";\"الإثنين\";\"الثلاثاء\";\"الأربعاء\";\"الخميس\";\"الجمعة\"},WEEKDAY(M7,16)))","v":"الإثنين"},{"$f":"IF(N7=\"\",\"\",INDEX({\"السبت\";\"الأحد\";\"الإثنين\";\"الثلاثاء\";\"الأربعاء\";\"الخميس\";\"الجمعة\"},WEEKDAY(N7,16)))","v":"الثلاثاء"},{"$f":"IF(O7=\"\",\"\",INDEX({\"السبت\";\"الأحد\";\"الإثنين\";\"الثلاثاء\";\"الأربعاء\";\"الخميس\";\"الجمعة\"},WEEKDAY(O7,16)))","v":"الأربعاء"},{"$f":"IF(P7=\"\",\"\",INDEX({\"السبت\";\"الأحد\";\"الإثنين\";\"الثلاثاء\";\"الأربعاء\";\"الخميس\";\"الجمعة\"},WEEKDAY(P7,16)))","v":"الخميس"},{"$f":"IF(Q7=\"\",\"\",INDEX({\"السبت\";\"الأحد\";\"الإثنين\";\"الثلاثاء\";\"الأربعاء\";\"الخميس\";\"الجمعة\"},WEEKDAY(Q7,16)))","v":"الجمعة"},{"$f":"IF(R7=\"\",\"\",INDEX({\"السبت\";\"الأحد\";\"الإثنين\";\"الثلاثاء\";\"الأربعاء\";\"الخميس\";\"الجمعة\"},WEEKDAY(R7,16)))","v":"السبت"},{"$f":"IF(S7=\"\",\"\",INDEX({\"السبت\";\"الأحد\";\"الإثنين\";\"الثلاثاء\";\"الأربعاء\";\"الخميس\";\"الجمعة\"},WEEKDAY(S7,16)))","v":"الأحد"},{"$f":"IF(T7=\"\",\"\",INDEX({\"السبت\";\"الأحد\";\"الإثنين\";\"الثلاثاء\";\"الأربعاء\";\"الخميس\";\"الجمعة\"},WEEKDAY(T7,16)))","v":"الإثنين"},{"$f":"IF(U7=\"\",\"\",INDEX({\"السبت\";\"الأحد\";\"الإثنين\";\"الثلاثاء\";\"الأربعاء\";\"الخميس\";\"الجمعة\"},WEEKDAY(U7,16)))","v":"الثلاثاء"},{"$f":"IF(V7=\"\",\"\",INDEX({\"السبت\";\"الأحد\";\"الإثنين\";\"الثلاثاء\";\"الأربعاء\";\"الخميس\";\"الجمعة\"},WEEKDAY(V7,16)))","v":"الأربعاء"},{"$f":"IF(W7=\"\",\"\",INDEX({\"السبت\";\"الأحد\";\"الإثنين\";\"الثلاثاء\";\"الأربعاء\";\"الخميس\";\"الجمعة\"},WEEKDAY(W7,16)))","v":"الخميس"},{"$f":"IF(X7=\"\",\"\",INDEX({\"السبت\";\"الأحد\";\"الإثنين\";\"الثلاثاء\";\"الأربعاء\";\"الخميس\";\"الجمعة\"},WEEKDAY(X7,16)))","v":"الجمعة"},{"$f":"IF(Y7=\"\",\"\",INDEX({\"السبت\";\"الأحد\";\"الإثنين\";\"الثلاثاء\";\"الأربعاء\";\"الخميس\";\"الجمعة\"},WEEKDAY(Y7,16)))","v":"السبت"},{"$f":"IF(Z7=\"\",\"\",INDEX({\"السبت\";\"الأحد\";\"الإثنين\";\"الثلاثاء\";\"الأربعاء\";\"الخميس\";\"الجمعة\"},WEEKDAY(Z7,16)))","v":"الأحد"},{"$f":"IF(AA7=\"\",\"\",INDEX({\"السبت\";\"الأحد\";\"الإثنين\";\"الثلاثاء\";\"الأربعاء\";\"الخميس\";\"الجمعة\"},WEEKDAY(AA7,16)))","v":"الإثنين"},{"$f":"IF(AB7=\"\",\"\",INDEX({\"السبت\";\"الأحد\";\"الإثنين\";\"الثلاثاء\";\"الأربعاء\";\"الخميس\";\"الجمعة\"},WEEKDAY(AB7,16)))","v":"الثلاثاء"},{"$f":"IF(AC7=\"\",\"\",INDEX({\"السبت\";\"الأحد\";\"الإثنين\";\"الثلاثاء\";\"الأربعاء\";\"الخميس\";\"الجمعة\"},WEEKDAY(AC7,16)))","v":"الأربعاء"},{"$f":"IF(AD7=\"\",\"\",INDEX({\"السبت\";\"الأحد\";\"الإثنين\";\"الثلاثاء\";\"الأربعاء\";\"الخميس\";\"الجمعة\"},WEEKDAY(AD7,16)))","v":"الخميس"},{"$f":"IF(AE7=\"\",\"\",INDEX({\"السبت\";\"الأحد\";\"الإثنين\";\"الثلاثاء\";\"الأربعاء\";\"الخميس\";\"الجمعة\"},WEEKDAY(AE7,16)))","v":"الجمعة"},{"$f":"IF(AF7=\"\",\"\",INDEX({\"السبت\";\"الأحد\";\"الإثنين\";\"الثلاثاء\";\"الأربعاء\";\"الخميس\";\"الجمعة\"},WEEKDAY(AF7,16)))","v":"السبت"},{"$f":"IF(AG7=\"\",\"\",INDEX({\"السبت\";\"الأحد\";\"الإثنين\";\"الثلاثاء\";\"الأربعاء\";\"الخميس\";\"الجمعة\"},WEEKDAY(AG7,16)))","v":"الأحد"},{"$f":"IF(AH7=\"\",\"\",INDEX({\"السبت\";\"الأحد\";\"الإثنين\";\"الثلاثاء\";\"الأربعاء\";\"الخميس\";\"الجمعة\"},WEEKDAY(AH7,16)))","v":"الإثنين"},{"$f":"IF(AI7=\"\",\"\",INDEX({\"السبت\";\"الأحد\";\"الإثنين\";\"الثلاثاء\";\"الأربعاء\";\"الخميس\";\"الجمعة\"},WEEKDAY(AI7,16)))","v":"الثلاثاء"},"عرضية","مرضية ","عدم صرف","سنوية","تنبيه","انذار","حسم","مغادرات","تأخير",null,null,6,"حزيران",null,"انذار"]
[null,null,null,null,{"$f":"IF(COLUMNS($E$1:E1)>DAY(DATE($AD$4,INDEX(ROW($A$1:$A$12),MATCH($AD$3,{\"كانون الثاني\";\"شباط\";\"آذار\";\"نيسان\";\"أيار\";\"حزيران\";\"تموز\";\"آب\";\"أيلول\";\"تشرين الأول\";\"تشرين الثاني\";\"كانون الأول\"},0)),COLUMNS($E$1:E1))),\"\",DATE($AD$4,INDEX(ROW($A$1:$A$12),MATCH($AD$3,{\"كانون الثاني\";\"شباط\";\"آذار\";\"نيسان\";\"أيار\";\"حزيران\";\"تموز\";\"آب\";\"أيلول\";\"تشرين الأول\";\"تشرين الثاني\";\"كانون الأول\"},0)),COLUMNS($E$1:E1)))","v":"2023-01-01"},{"$f":"IF(COLUMNS($E$1:F1)>DAY(DATE($AD$4,INDEX(ROW($A$1:$A$12),MATCH($AD$3,{\"كانون الثاني\";\"شباط\";\"آذار\";\"نيسان\";\"أيار\";\"حزيران\";\"تموز\";\"آب\";\"أيلول\";\"تشرين الأول\";\"تشرين الثاني\";\"كانون الأول\"},0)),COLUMNS($E$1:F1))),\"\",DATE($AD$4,INDEX(ROW($A$1:$A$12),MATCH($AD$3,{\"كانون الثاني\";\"شباط\";\"آذار\";\"نيسان\";\"أيار\";\"حزيران\";\"تموز\";\"آب\";\"أيلول\";\"تشرين الأول\";\"تشرين الثاني\";\"كانون الأول\"},0)),COLUMNS($E$1:F1)))","v":"2023-01-02"},{"$f":"IF(COLUMNS($E$1:G1)>DAY(DATE($AD$4,INDEX(ROW($A$1:$A$12),MATCH($AD$3,{\"كانون الثاني\";\"شباط\";\"آذار\";\"نيسان\";\"أيار\";\"حزيران\";\"تموز\";\"آب\";\"أيلول\";\"تشرين الأول\";\"تشرين الثاني\";\"كانون الأول\"},0)),COLUMNS($E$1:G1))),\"\",DATE($AD$4,INDEX(ROW($A$1:$A$12),MATCH($AD$3,{\"كانون الثاني\";\"شباط\";\"آذار\";\"نيسان\";\"أيار\";\"حزيران\";\"تموز\";\"آب\";\"أيلول\";\"تشرين الأول\";\"تشرين الثاني\";\"كانون الأول\"},0)),COLUMNS($E$1:G1)))","v":"2023-01-03"},{"$f":"IF(COLUMNS($E$1:H1)>DAY(DATE($AD$4,INDEX(ROW($A$1:$A$12),MATCH($AD$3,{\"كانون الثاني\";\"شباط\";\"آذار\";\"نيسان\";\"أيار\";\"حزيران\";\"تموز\";\"آب\";\"أيلول\";\"تشرين الأول\";\"تشرين الثاني\";\"كانون الأول\"},0)),COLUMNS($E$1:H1))),\"\",DATE($AD$4,INDEX(ROW($A$1:$A$12),MATCH($AD$3,{\"كانون الثاني\";\"شباط\";\"آذار\";\"نيسان\";\"أيار\";\"حزيران\";\"تموز\";\"آب\";\"أيلول\";\"تشرين الأول\";\"تشرين الثاني\";\"كانون الأول\"},0)),COLUMNS($E$1:H1)))","v":"2023-01-04"},{"$f":"IF(COLUMNS($E$1:I1)>DAY(DATE($AD$4,INDEX(ROW($A$1:$A$12),MATCH($AD$3,{\"كانون الثاني\";\"شباط\";\"آذار\";\"نيسان\";\"أيار\";\"حزيران\";\"تموز\";\"آب\";\"أيلول\";\"تشرين الأول\";\"تشرين الثاني\";\"كانون الأول\"},0)),COLUMNS($E$1:I1))),\"\",DATE($AD$4,INDEX(ROW($A$1:$A$12),MATCH($AD$3,{\"كانون الثاني\";\"شباط\";\"آذار\";\"نيسان\";\"أيار\";\"حزيران\";\"تموز\";\"آب\";\"أيلول\";\"تشرين الأول\";\"تشرين الثاني\";\"كانون الأول\"},0)),COLUMNS($E$1:I1)))","v":"2023-01-05"},{"$f":"IF(COLUMNS($E$1:J1)>DAY(DATE($AD$4,INDEX(ROW($A$1:$A$12),MATCH($AD$3,{\"كانون الثاني\";\"شباط\";\"آذار\";\"نيسان\";\"أيار\";\"حزيران\";\"تموز\";\"آب\";\"أيلول\";\"تشرين الأول\";\"تشرين الثاني\";\"كانون الأول\"},0)),COLUMNS($E$1:J1))),\"\",DATE($AD$4,INDEX(ROW($A$1:$A$12),MATCH($AD$3,{\"كانون الثاني\";\"شباط\";\"آذار\";\"نيسان\";\"أيار\";\"حزيران\";\"تموز\";\"آب\";\"أيلول\";\"تشرين الأول\";\"تشرين الثاني\";\"كانون الأول\"},0)),COLUMNS($E$1:J1)))","v":"2023-01-06"},{"$f":"IF(COLUMNS($E$1:K1)>DAY(DATE($AD$4,INDEX(ROW($A$1:$A$12),MATCH($AD$3,{\"كانون الثاني\";\"شباط\";\"آذار\";\"نيسان\";\"أيار\";\"حزيران\";\"تموز\";\"آب\";\"أيلول\";\"تشرين الأول\";\"تشرين الثاني\";\"كانون الأول\"},0)),COLUMNS($E$1:K1))),\"\",DATE($AD$4,INDEX(ROW($A$1:$A$12),MATCH($AD$3,{\"كانون الثاني\";\"شباط\";\"آذار\";\"نيسان\";\"أيار\";\"حزيران\";\"تموز\";\"آب\";\"أيلول\";\"تشرين الأول\";\"تشرين الثاني\";\"كانون الأول\"},0)),COLUMNS($E$1:K1)))","v":"2023-01-07"},{"$f":"IF(COLUMNS($E$1:L1)>DAY(DATE($AD$4,INDEX(ROW($A$1:$A$12),MATCH($AD$3,{\"كانون الثاني\";\"شباط\";\"آذار\";\"نيسان\";\"أيار\";\"حزيران\";\"تموز\";\"آب\";\"أيلول\";\"تشرين الأول\";\"تشرين الثاني\";\"كانون الأول\"},0)),COLUMNS($E$1:L1))),\"\",DATE($AD$4,INDEX(ROW($A$1:$A$12),MATCH($AD$3,{\"كانون الثاني\";\"شباط\";\"آذار\";\"نيسان\";\"أيار\";\"حزيران\";\"تموز\";\"آب\";\"أيلول\";\"تشرين الأول\";\"تشرين الثاني\";\"كانون الأول\"},0)),COLUMNS($E$1:L1)))","v":"2023-01-08"},{"$f":"IF(COLUMNS($E$1:M1)>DAY(DATE($AD$4,INDEX(ROW($A$1:$A$12),MATCH($AD$3,{\"كانون الثاني\";\"شباط\";\"آذار\";\"نيسان\";\"أيار\";\"حزيران\";\"تموز\";\"آب\";\"أيلول\";\"تشرين الأول\";\"تشرين الثاني\";\"كانون الأول\"},0)),COLUMNS($E$1:M1))),\"\",DATE($AD$4,INDEX(ROW($A$1:$A$12),MATCH($AD$3,{\"كانون الثاني\";\"شباط\";\"آذار\";\"نيسان\";\"أيار\";\"حزيران\";\"تموز\";\"آب\";\"أيلول\";\"تشرين الأول\";\"تشرين الثاني\";\"كانون الأول\"},0)),COLUMNS($E$1:M1)))","v":"2023-01-09"},{"$f":"IF(COLUMNS($E$1:N1)>DAY(DATE($AD$4,INDEX(ROW($A$1:$A$12),MATCH($AD$3,{\"كانون الثاني\";\"شباط\";\"آذار\";\"نيسان\";\"أيار\";\"حزيران\";\"تموز\";\"آب\";\"أيلول\";\"تشرين الأول\";\"تشرين الثاني\";\"كانون الأول\"},0)),COLUMNS($E$1:N1))),\"\",DATE($AD$4,INDEX(ROW($A$1:$A$12),MATCH($AD$3,{\"كانون الثاني\";\"شباط\";\"آذار\";\"نيسان\";\"أيار\";\"حزيران\";\"تموز\";\"آب\";\"أيلول\";\"تشرين الأول\";\"تشرين الثاني\";\"كانون الأول\"},0)),COLUMNS($E$1:N1)))","v":"2023-01-10"},{"$f":"IF(COLUMNS($E$1:O1)>DAY(DATE($AD$4,INDEX(ROW($A$1:$A$12),MATCH($AD$3,{\"كانون الثاني\";\"شباط\";\"آذار\";\"نيسان\";\"أيار\";\"حزيران\";\"تموز\";\"آب\";\"أيلول\";\"تشرين الأول\";\"تشرين الثاني\";\"كانون الأول\"},0)),COLUMNS($E$1:O1))),\"\",DATE($AD$4,INDEX(ROW($A$1:$A$12),MATCH($AD$3,{\"كانون الثاني\";\"شباط\";\"آذار\";\"نيسان\";\"أيار\";\"حزيران\";\"تموز\";\"آب\";\"أيلول\";\"تشرين الأول\";\"تشرين الثاني\";\"كانون الأول\"},0)),COLUMNS($E$1:O1)))","v":"2023-01-11"},{"$f":"IF(COLUMNS($E$1:P1)>DAY(DATE($AD$4,INDEX(ROW($A$1:$A$12),MATCH($AD$3,{\"كانون الثاني\";\"شباط\";\"آذار\";\"نيسان\";\"أيار\";\"حزيران\";\"تموز\";\"آب\";\"أيلول\";\"تشرين الأول\";\"تشرين الثاني\";\"كانون الأول\"},0)),COLUMNS($E$1:P1))),\"\",DATE($AD$4,INDEX(ROW($A$1:$A$12),MATCH($AD$3,{\"كانون الثاني\";\"شباط\";\"آذار\";\"نيسان\";\"أيار\";\"حزيران\";\"تموز\";\"آب\";\"أيلول\";\"تشرين الأول\";\"تشرين الثاني\";\"كانون الأول\"},0)),COLUMNS($E$1:P1)))","v":"2023-01-12"},{"$f":"IF(COLUMNS($E$1:Q1)>DAY(DATE($AD$4,INDEX(ROW($A$1:$A$12),MATCH($AD$3,{\"كانون الثاني\";\"شباط\";\"آذار\";\"نيسان\";\"أيار\";\"حزيران\";\"تموز\";\"آب\";\"أيلول\";\"تشرين الأول\";\"تشرين الثاني\";\"كانون الأول\"},0)),COLUMNS($E$1:Q1))),\"\",DATE($AD$4,INDEX(ROW($A$1:$A$12),MATCH($AD$3,{\"كانون الثاني\";\"شباط\";\"آذار\";\"نيسان\";\"أيار\";\"حزيران\";\"تموز\";\"آب\";\"أيلول\";\"تشرين الأول\";\"تشرين الثاني\";\"كانون الأول\"},0)),COLUMNS($E$1:Q1)))","v":"2023-01-13"},{"$f":"IF(COLUMNS($E$1:R1)>DAY(DATE($AD$4,INDEX(ROW($A$1:$A$12),MATCH($AD$3,{\"كانون الثاني\";\"شباط\";\"آذار\";\"نيسان\";\"أيار\";\"حزيران\";\"تموز\";\"آب\";\"أيلول\";\"تشرين الأول\";\"تشرين الثاني\";\"كانون الأول\"},0)),COLUMNS($E$1:R1))),\"\",DATE($AD$4,INDEX(ROW($A$1:$A$12),MATCH($AD$3,{\"كانون الثاني\";\"شباط\";\"آذار\";\"نيسان\";\"أيار\";\"حزيران\";\"تموز\";\"آب\";\"أيلول\";\"تشرين الأول\";\"تشرين الثاني\";\"كانون الأول\"},0)),COLUMNS($E$1:R1)))","v":"2023-01-14"},{"$f":"IF(COLUMNS($E$1:S1)>DAY(DATE($AD$4,INDEX(ROW($A$1:$A$12),MATCH($AD$3,{\"كانون الثاني\";\"شباط\";\"آذار\";\"نيسان\";\"أيار\";\"حزيران\";\"تموز\";\"آب\";\"أيلول\";\"تشرين الأول\";\"تشرين الثاني\";\"كانون الأول\"},0)),COLUMNS($E$1:S1))),\"\",DATE($AD$4,INDEX(ROW($A$1:$A$12),MATCH($AD$3,{\"كانون الثاني\";\"شباط\";\"آذار\";\"نيسان\";\"أيار\";\"حزيران\";\"تموز\";\"آب\";\"أيلول\";\"تشرين الأول\";\"تشرين الثاني\";\"كانون الأول\"},0)),COLUMNS($E$1:S1)))","v":"2023-01-15"},{"$f":"IF(COLUMNS($E$1:T1)>DAY(DATE($AD$4,INDEX(ROW($A$1:$A$12),MATCH($AD$3,{\"كانون الثاني\";\"شباط\";\"آذار\";\"نيسان\";\"أيار\";\"حزيران\";\"تموز\";\"آب\";\"أيلول\";\"تشرين الأول\";\"تشرين الثاني\";\"كانون الأول\"},0)),COLUMNS($E$1:T1))),\"\",DATE($AD$4,INDEX(ROW($A$1:$A$12),MATCH($AD$3,{\"كانون الثاني\";\"شباط\";\"آذار\";\"نيسان\";\"أيار\";\"حزيران\";\"تموز\";\"آب\";\"أيلول\";\"تشرين الأول\";\"تشرين الثاني\";\"كانون الأول\"},0)),COLUMNS($E$1:T1)))","v":"2023-01-16"},{"$f":"IF(COLUMNS($E$1:U1)>DAY(DATE($AD$4,INDEX(ROW($A$1:$A$12),MATCH($AD$3,{\"كانون الثاني\";\"شباط\";\"آذار\";\"نيسان\";\"أيار\";\"حزيران\";\"تموز\";\"آب\";\"أيلول\";\"تشرين الأول\";\"تشرين الثاني\";\"كانون الأول\"},0)),COLUMNS($E$1:U1))),\"\",DATE($AD$4,INDEX(ROW($A$1:$A$12),MATCH($AD$3,{\"كانون الثاني\";\"شباط\";\"آذار\";\"نيسان\";\"أيار\";\"حزيران\";\"تموز\";\"آب\";\"أيلول\";\"تشرين الأول\";\"تشرين الثاني\";\"كانون الأول\"},0)),COLUMNS($E$1:U1)))","v":"2023-01-17"},{"$f":"IF(COLUMNS($E$1:V1)>DAY(DATE($AD$4,INDEX(ROW($A$1:$A$12),MATCH($AD$3,{\"كانون الثاني\";\"شباط\";\"آذار\";\"نيسان\";\"أيار\";\"حزيران\";\"تموز\";\"آب\";\"أيلول\";\"تشرين الأول\";\"تشرين الثاني\";\"كانون الأول\"},0)),COLUMNS($E$1:V1))),\"\",DATE($AD$4,INDEX(ROW($A$1:$A$12),MATCH($AD$3,{\"كانون الثاني\";\"شباط\";\"آذار\";\"نيسان\";\"أيار\";\"حزيران\";\"تموز\";\"آب\";\"أيلول\";\"تشرين الأول\";\"تشرين الثاني\";\"كانون الأول\"},0)),COLUMNS($E$1:V1)))","v":"2023-01-18"},{"$f":"IF(COLUMNS($E$1:W1)>DAY(DATE($AD$4,INDEX(ROW($A$1:$A$12),MATCH($AD$3,{\"كانون الثاني\";\"شباط\";\"آذار\";\"نيسان\";\"أيار\";\"حزيران\";\"تموز\";\"آب\";\"أيلول\";\"تشرين الأول\";\"تشرين الثاني\";\"كانون الأول\"},0)),COLUMNS($E$1:W1))),\"\",DATE($AD$4,INDEX(ROW($A$1:$A$12),MATCH($AD$3,{\"كانون الثاني\";\"شباط\";\"آذار\";\"نيسان\";\"أيار\";\"حزيران\";\"تموز\";\"آب\";\"أيلول\";\"تشرين الأول\";\"تشرين الثاني\";\"كانون الأول\"},0)),COLUMNS($E$1:W1)))","v":"2023-01-19"},{"$f":"IF(COLUMNS($E$1:X1)>DAY(DATE($AD$4,INDEX(ROW($A$1:$A$12),MATCH($AD$3,{\"كانون الثاني\";\"شباط\";\"آذار\";\"نيسان\";\"أيار\";\"حزيران\";\"تموز\";\"آب\";\"أيلول\";\"تشرين الأول\";\"تشرين الثاني\";\"كانون الأول\"},0)),COLUMNS($E$1:X1))),\"\",DATE($AD$4,INDEX(ROW($A$1:$A$12),MATCH($AD$3,{\"كانون الثاني\";\"شباط\";\"آذار\";\"نيسان\";\"أيار\";\"حزيران\";\"تموز\";\"آب\";\"أيلول\";\"تشرين الأول\";\"تشرين الثاني\";\"كانون الأول\"},0)),COLUMNS($E$1:X1)))","v":"2023-01-20"},{"$f":"IF(COLUMNS($E$1:Y1)>DAY(DATE($AD$4,INDEX(ROW($A$1:$A$12),MATCH($AD$3,{\"كانون الثاني\";\"شباط\";\"آذار\";\"نيسان\";\"أيار\";\"حزيران\";\"تموز\";\"آب\";\"أيلول\";\"تشرين الأول\";\"تشرين الثاني\";\"كانون الأول\"},0)),COLUMNS($E$1:Y1))),\"\",DATE($AD$4,INDEX(ROW($A$1:$A$12),MATCH($AD$3,{\"كانون الثاني\";\"شباط\";\"آذار\";\"نيسان\";\"أيار\";\"حزيران\";\"تموز\";\"آب\";\"أيلول\";\"تشرين الأول\";\"تشرين الثاني\";\"كانون الأول\"},0)),COLUMNS($E$1:Y1)))","v":"2023-01-21"},{"$f":"IF(COLUMNS($E$1:Z1)>DAY(DATE($AD$4,INDEX(ROW($A$1:$A$12),MATCH($AD$3,{\"كانون الثاني\";\"شباط\";\"آذار\";\"نيسان\";\"أيار\";\"حزيران\";\"تموز\";\"آب\";\"أيلول\";\"تشرين الأول\";\"تشرين الثاني\";\"كانون الأول\"},0)),COLUMNS($E$1:Z1))),\"\",DATE($AD$4,INDEX(ROW($A$1:$A$12),MATCH($AD$3,{\"كانون الثاني\";\"شباط\";\"آذار\";\"نيسان\";\"أيار\";\"حزيران\";\"تموز\";\"آب\";\"أيلول\";\"تشرين الأول\";\"تشرين الثاني\";\"كانون الأول\"},0)),COLUMNS($E$1:Z1)))","v":"2023-01-22"},{"$f":"IF(COLUMNS($E$1:AA1)>DAY(DATE($AD$4,INDEX(ROW($A$1:$A$12),MATCH($AD$3,{\"كانون الثاني\";\"شباط\";\"آذار\";\"نيسان\";\"أيار\";\"حزيران\";\"تموز\";\"آب\";\"أيلول\";\"تشرين الأول\";\"تشرين الثاني\";\"كانون الأول\"},0)),COLUMNS($E$1:AA1))),\"\",DATE($AD$4,INDEX(ROW($A$1:$A$12),MATCH($AD$3,{\"كانون الثاني\";\"شباط\";\"آذار\";\"نيسان\";\"أيار\";\"حزيران\";\"تموز\";\"آب\";\"أيلول\";\"تشرين الأول\";\"تشرين الثاني\";\"كانون الأول\"},0)),COLUMNS($E$1:AA1)))","v":"2023-01-23"},{"$f":"IF(COLUMNS($E$1:AB1)>DAY(DATE($AD$4,INDEX(ROW($A$1:$A$12),MATCH($AD$3,{\"كانون الثاني\";\"شباط\";\"آذار\";\"نيسان\";\"أيار\";\"حزيران\";\"تموز\";\"آب\";\"أيلول\";\"تشرين الأول\";\"تشرين الثاني\";\"كانون الأول\"},0)),COLUMNS($E$1:AB1))),\"\",DATE($AD$4,INDEX(ROW($A$1:$A$12),MATCH($AD$3,{\"كانون الثاني\";\"شباط\";\"آذار\";\"نيسان\";\"أيار\";\"حزيران\";\"تموز\";\"آب\";\"أيلول\";\"تشرين الأول\";\"تشرين الثاني\";\"كانون الأول\"},0)),COLUMNS($E$1:AB1)))","v":"2023-01-24"},{"$f":"IF(COLUMNS($E$1:AC1)>DAY(DATE($AD$4,INDEX(ROW($A$1:$A$12),MATCH($AD$3,{\"كانون الثاني\";\"شباط\";\"آذار\";\"نيسان\";\"أيار\";\"حزيران\";\"تموز\";\"آب\";\"أيلول\";\"تشرين الأول\";\"تشرين الثاني\";\"كانون الأول\"},0)),COLUMNS($E$1:AC1))),\"\",DATE($AD$4,INDEX(ROW($A$1:$A$12),MATCH($AD$3,{\"كانون الثاني\";\"شباط\";\"آذار\";\"نيسان\";\"أيار\";\"حزيران\";\"تموز\";\"آب\";\"أيلول\";\"تشرين الأول\";\"تشرين الثاني\";\"كانون الأول\"},0)),COLUMNS($E$1:AC1)))","v":"2023-01-25"},{"$f":"IF(COLUMNS($E$1:AD1)>DAY(DATE($AD$4,INDEX(ROW($A$1:$A$12),MATCH($AD$3,{\"كانون الثاني\";\"شباط\";\"آذار\";\"نيسان\";\"أيار\";\"حزيران\";\"تموز\";\"آب\";\"أيلول\";\"تشرين الأول\";\"تشرين الثاني\";\"كانون الأول\"},0)),COLUMNS($E$1:AD1))),\"\",DATE($AD$4,INDEX(ROW($A$1:$A$12),MATCH($AD$3,{\"كانون الثاني\";\"شباط\";\"آذار\";\"نيسان\";\"أيار\";\"حزيران\";\"تموز\";\"آب\";\"أيلول\";\"تشرين الأول\";\"تشرين الثاني\";\"كانون الأول\"},0)),COLUMNS($E$1:AD1)))","v":"2023-01-26"},{"$f":"IF(COLUMNS($E$1:AE1)>DAY(DATE($AD$4,INDEX(ROW($A$1:$A$12),MATCH($AD$3,{\"كانون الثاني\";\"شباط\";\"آذار\";\"نيسان\";\"أيار\";\"حزيران\";\"تموز\";\"آب\";\"أيلول\";\"تشرين الأول\";\"تشرين الثاني\";\"كانون الأول\"},0)),COLUMNS($E$1:AE1))),\"\",DATE($AD$4,INDEX(ROW($A$1:$A$12),MATCH($AD$3,{\"كانون الثاني\";\"شباط\";\"آذار\";\"نيسان\";\"أيار\";\"حزيران\";\"تموز\";\"آب\";\"أيلول\";\"تشرين الأول\";\"تشرين الثاني\";\"كانون الأول\"},0)),COLUMNS($E$1:AE1)))","v":"2023-01-27"},{"$f":"IF(COLUMNS($E$1:AF1)>DAY(DATE($AD$4,INDEX(ROW($A$1:$A$12),MATCH($AD$3,{\"كانون الثاني\";\"شباط\";\"آذار\";\"نيسان\";\"أيار\";\"حزيران\";\"تموز\";\"آب\";\"أيلول\";\"تشرين الأول\";\"تشرين الثاني\";\"كانون الأول\"},0)),COLUMNS($E$1:AF1))),\"\",DATE($AD$4,INDEX(ROW($A$1:$A$12),MATCH($AD$3,{\"كانون الثاني\";\"شباط\";\"آذار\";\"نيسان\";\"أيار\";\"حزيران\";\"تموز\";\"آب\";\"أيلول\";\"تشرين الأول\";\"تشرين الثاني\";\"كانون الأول\"},0)),COLUMNS($E$1:AF1)))","v":"2023-01-28"},{"$f":"IF(COLUMNS($E$1:AG1)>DAY(DATE($AD$4,INDEX(ROW($A$1:$A$12),MATCH($AD$3,{\"كانون الثاني\";\"شباط\";\"آذار\";\"نيسان\";\"أيار\";\"حزيران\";\"تموز\";\"آب\";\"أيلول\";\"تشرين الأول\";\"تشرين الثاني\";\"كانون الأول\"},0)),COLUMNS($E$1:AG1))),\"\",DATE($AD$4,INDEX(ROW($A$1:$A$12),MATCH($AD$3,{\"كانون الثاني\";\"شباط\";\"آذار\";\"نيسان\";\"أيار\";\"حزيران\";\"تموز\";\"آب\";\"أيلول\";\"تشرين الأول\";\"تشرين الثاني\";\"كانون الأول\"},0)),COLUMNS($E$1:AG1)))","v":"2023-01-29"},{"$f":"IF(COLUMNS($E$1:AH1)>DAY(DATE($AD$4,INDEX(ROW($A$1:$A$12),MATCH($AD$3,{\"كانون الثاني\";\"شباط\";\"آذار\";\"نيسان\";\"أيار\";\"حزيران\";\"تموز\";\"آب\";\"أيلول\";\"تشرين الأول\";\"تشرين الثاني\";\"كانون الأول\"},0)),COLUMNS($E$1:AH1))),\"\",DATE($AD$4,INDEX(ROW($A$1:$A$12),MATCH($AD$3,{\"كانون الثاني\";\"شباط\";\"آذار\";\"نيسان\";\"أيار\";\"حزيران\";\"تموز\";\"آب\";\"أيلول\";\"تشرين الأول\";\"تشرين الثاني\";\"كانون الأول\"},0)),COLUMNS($E$1:AH1)))","v":"2023-01-30"},{"$f":"IF(COLUMNS($E$1:AI1)>DAY(DATE($AD$4,INDEX(ROW($A$1:$A$12),MATCH($AD$3,{\"كانون الثاني\";\"شباط\";\"آذار\";\"نيسان\";\"أيار\";\"حزيران\";\"تموز\";\"آب\";\"أيلول\";\"تشرين الأول\";\"تشرين الثاني\";\"كانون الأول\"},0)),COLUMNS($E$1:AI1))),\"\",DATE($AD$4,INDEX(ROW($A$1:$A$12),MATCH($AD$3,{\"كانون الثاني\";\"شباط\";\"آذار\";\"نيسان\";\"أيار\";\"حزيران\";\"تموز\";\"آب\";\"أيلول\";\"تشرين الأول\";\"تشرين الثاني\";\"كانون الأول\"},0)),COLUMNS($E$1:AI1)))","v":"2023-01-31"},"عرضية","مرضية ","عدم صرف","سنوية","تنبيه","انذار","حسم","مغادرات","تأخير",null,null,7,"تموز",null,"حسم من الراتب"]
[null,null,{"$f":"ROW()-7","v":1},"س 1",null,null,"مرضية ","سنوية ","مرضية ",null,"انذار",null,null,null,null,"عرضية ",null,"عرضية ",null,null,null,null,null,null,null,null,null,null,null,null,null,"تأخير",null,null,null,{"$f":"COUNTIF(E8:AI8,\"*\"&AJ$7&\"*\")","v":2},{"$f":"COUNTIF(E8:AI8,\"*\"&AK$7&\"*\")","v":2},{"$f":"COUNTIF(E8:AJ8,\"*\"&AL$7&\"*\")","v":0},{"$f":"COUNTIF(E8:AI8,\"*\"&AM$7&\"*\")","v":1},{"$f":"COUNTIF(E8:AI8,\"*\"&AN$7&\"*\")","v":0},{"$f":"COUNTIF(E8:AI8,\"*\"&AO$7&\"*\")","v":1},{"$f":"COUNTIF(E8:AI8,\"*\"&AP$7&\"*\")","v":0},{"$f":"COUNTIF(E8:AI8,\"*\"&AQ$7&\"*\")","v":0},{"$f":"COUNTIF(E8:AP8,\"*\"&AR$7&\"*\")","v":1},null,null,8,"آب",null,"مغادرة "]
[null,null,{"$f":"ROW()-7","v":2},"س 2",null,null,null,null,null,null,null,null,null,null,null,null,null,null,null,null,"عرضية ",null,null,null,null,null,null,null,null,null,null,null,null,null,null,{"$f":"COUNTIF(E9:AI9,\"*\"&AJ$7&\"*\")","v":1},{"$f":"COUNTIF(E9:AI9,\"*\"&AK$7&\"*\")","v":0},{"$f":"COUNTIF(E9:AJ9,\"*\"&AL$7&\"*\")","v":0},{"$f":"COUNTIF(E9:AI9,\"*\"&AM$7&\"*\")","v":0},{"$f":"COUNTIF(E9:AI9,\"*\"&AN$7&\"*\")","v":0},{"$f":"COUNTIF(E9:AI9,\"*\"&AO$7&\"*\")","v":0},{"$f":"COUNTIF(E9:AI9,\"*\"&AP$7&\"*\")","v":0},{"$f":"COUNTIF(E9:AI9,\"*\"&AQ$7&\"*\")","v":0},{"$f":"COUNTIF(E9:AP9,\"*\"&AR$7&\"*\")","v":0},null,null,9,"أيلول",null,"تأخير"]
[null,null,3,"س 3",null,null,null,null,null,null,null,null,null,null,null,null,null,null,null,null,null,null,null,null,null,null,null,null,null,null,null,null,null,null,null,0,0,0,0,0,0,0,0,0,null,null,10,"تشرين الأول"]
[null,null,4,"س 4",null,null,null,null,null,null,null,null,null,null,null,null,null,null,null,null,null,null,null,null,null,null,null,null,null,null,null,null,null,null,null,0,0,0,0,0,0,0,0,0,null,null,11,"تشرين الثاني"]
[null,null,5,"س 5",null,null,null,null,null,null,"مرضية ",null,null,null,null,"عدم صرف",null,null,null,null,null,null,null,null,null,null,null,null,null,null,null,null,null,null,null,0,1,1,0,0,0,0,0,0,null,null,12,"كانون الأول"]
[null,null,6,"س 6",null,null,null,null,null,null,null,null,null,null,null,null,null,null,null,null,null,null,null,null,null,null,null,null,null,null,null,null,null,null,null,0,0,0,0,0,0,0,0,0,null,null,13]
[null,null,7,"س 7",null,null,null,null,null,null,null,null,null,null,null,null,null,null,null,null,null,null,null,null,null,null,null,null,null,null,null,null,null,null,null,0,0,0,0,0,0,0,0,0,null,null,14]
[null,null,8,"س 8",null,null,null,null,null,null,null,null,null,null,null,null,null,null,null,null,null,null,null,null,null,null,null,null,null,null,null,null,null,null,null,0,0,0,0,0,0,0,0,0,null,null,15]
[null,null,9,"س 9",null,null,null,null,null,null,null,null,null,null,null,null,null,null,null,null,null,null,null,null,null,null,null,null,null,null,null,null,null,null,null,0,0,0,0,0,0,0,0,0,null,null,16]
[null,null,10,"س 10",null,null,null,null,null,null,null,null,null,null,null,null,null,null,null,null,null,null,null,null,null,null,null,null,null,null,null,null,null,null,null,0,0,0,0,0,0,0,0,0,null,null,17]
[null,null,11,"س 11",null,null,null,null,null,null,null,null,null,null,null,null,null,null,null,null,null,null,null,null,null,null,null,null,null,null,null,null,null,null,null,0,0,0,0,0,0,0,0,0,null,null,18]
[null,null,12,"س 12",null,null,null,null,null,null,null,null,null,null,null,null,null,null,null,null,null,null,null,null,null,null,null,null,null,null,null,null,null,null,null,0,0,0,0,0,0,0,0,0,null,null,19]
[null,null,13,"س 13",null,null,null,null,null,null,null,null,null,null,null,null,"jj",null,null,null,null,null,null,null,null,null,null,null,null,null,null,null,null,null,null,0,0,0,0,0,0,0,0,0,null,null,20]
[null,null,14,"س 14",null,null,null,null,null,null,null,null,null,null,null,null,null,null,null,null,null,null,null,null,null,null,null,null,null,null,null,null,null,null,null,0,0,0,0,0,0,0,0,0,null,null,21]
[null,null,15,"س 15",null,null,null,null,null,null,null,null,null,null,null,null,null,null,null,null,null,null,null,null,null,null,null,null,null,null,null,null,null,null,null,0,0,0,0,0,0,0,0,0,null,null,22]
[null,null,16,"س 16",null,null,null,null,null,null,null,null,null,null,null,null,null,null,null,null,null,null,null,null,null,null,null,null,null,null,null,null,null,null,null,0,0,0,0,0,0,0,0,0,null,null,23]
[null,null,17,"س 17",null,null,null,null,null,null,null,null,null,null,null,null,null,null,null,null,null,null,null,null,null,null,null,null,null,null,null,null,null,null,null,0,0,0,0,0,0,0,0,0,null,null,24]
[null,null,18,"س 18",null,null,null,null,null,null,null,null,null,null,null,null,null,null,null,null,null,null,null,null,null,null,null,null,null,null,null,null,null,null,null,0,0,0,0,0,0,0,0,0,null,null,25]
[null,null,19,"س 19",null,null,null,null,null,null,null,null,null,null,null,null,null,null,null,null,null,null,null,null,null,null,null,null,null,null,null,null,null,null,null,0,0,0,0,0,0,0,0,0,null,null,26]
[null,null,20,"س 20",null,null,null,null,null,null,null,null,null,null,null,null,null,null,null,null,null,null,null,null,null,null,null,null,null,null,null,null,null,null,null,0,0,0,0,0,0,0,0,0,null,null,27]
[null,null,21,"س 21",null,null,null,null,null,null,null,null,null,null,null,null,null,null,null,null,null,null,null,null,null,null,null,null,null,null,null,null,null,null,null,0,0,0,0,0,0,0,0,0,null,null,28]
[null,null,22,"س 22",null,null,null,null,null,null,null,null,null,null,null,null,null,null,null,null,null,null,null,null,null,null,null,null,null,null,null,null,null,null,null,0,0,0,0,0,0,0,0,0,null,null,29]
[null,null,23,"س 23",null,null,null,null,null,null,null,null,null,null,null,null,null,null,null,null,null,null,null,null,null,null,null,null,null,null,null,null,null,null,null,0,0,0,0,0,0,0,0,0,null,null,30]
[null,null,24,"س 24",null,null,null,null,null,null,null,null,null,null,null,null,null,null,null,null,null,null,null,null,null,null,null,null,null,null,null,null,null,null,null,0,0,0,0,0,0,0,0,0,null,null,31]
[null,null,25,"س 25",null,null,null,null,null,null,null,null,null,null,null,null,null,null,null,null,null,null,null,null,null,null,null,null,null,null,null,null,null,null,null,0,0,0,0,0,0,0,0,0]
[null,null,26,"س 26",null,null,null,null,null,null,null,null,null,null,null,null,null,null,null,null,null,null,null,null,null,null,null,null,null,null,null,null,null,null,null,0,0,0,0,0,0,0,0,0]
[null,null,27,"س 27",null,null,null,null,null,null,null,null,null,null,null,null,null,null,null,null,null,null,null,null,null,null,null,null,null,null,null,null,null,null,null,0,0,0,0,0,0,0,0,0]
[null,null,28,"س 28",null,null,null,null,null,null,null,null,null,null,null,null,null,null,null,null,null,null,null,null,null,null,null,null,null,null,null,null,null,null,null,0,0,0,0,0,0,0,0,0]
[null,null,29,"س 29",null,null,null,null,null,null,null,null,null,null,null,null,null,null,null,null,null,null,null,null,null,null,null,null,null,null,null,null,null,null,null,0,0,0,0,0,0,0,0,0]
[null,null,30,"س 30",null,null,null,null,null,null,null,null,null,null,null,null,null,null,null,null,null,null,null,null,null,null,null,null,null,null,null,null,null,null,null,0,0,0,0,0,0,0,0,0]
[null,null,31,"س 31",null,null,null,null,null,null,null,null,null,null,null,null,null,null,null,null,null,null,null,null,null,null,null,null,null,null,null,null,null,null,null,0,0,0,0,0,0,0,0,0,null,null,null,"كانون الثاني"]
[null,null,32,"س 32",null,null,null,null,null,null,null,null,null,null,null,null,null,null,null,null,null,null,null,null,null,null,null,null,null,null,null,null,null,null,null,0,0,0,0,0,0,0,0,0,null,null,null,"شباط"]
[null,null,33,"س 33",null,null,null,null,null,null,null,null,null,null,null,null,null,null,null,null,null,null,null,null,null,null,null,null,null,null,null,null,null,null,null,0,0,0,0,0,0,0,0,0,null,null,null,"آذار"]
[null,null,34,"س 34",null,null,null,null,null,null,null,null,null,null,null,null,null,null,null,null,null,null,null,null,null,null,null,null,null,null,null,null,null,null,null,0,0,0,0,0,0,0,0,0,null,null,null,"نيسان"]
[null,null,35,"س 35",null,null,null,null,null,null,null,null,null,null,null,null,null,null,null,null,null,null,null,null,null,null,null,null,null,null,null,null,null,null,null,0,0,0,0,0,0,0,0,0,null,null,null,"أيار"]
[null,null,36,"س 36",null,null,null,null,null,null,null,null,null,null,null,null,null,null,null,null,null,null,null,null,null,null,null,null,null,null,null,null,null,null,null,0,0,0,0,0,0,0,0,0,null,null,null,"حزيران"]
[null,null,37,"س 37",null,null,null,null,null,null,null,null,null,null,null,null,null,null,null,null,null,null,null,null,null,null,null,null,null,null,null,null,null,null,null,0,0,0,0,0,0,0,0,0,null,null,null,"تموز"]
[null,null,38,"س 38",null,null,null,null,null,null,null,null,null,null,null,null,null,null,null,null,null,null,null,null,null,null,null,null,null,null,null,null,null,null,null,0,0,0,0,0,0,0,0,0,null,null,null,"آب"]
[null,null,39,"س 39",null,null,null,null,null,null,null,null,null,null,null,null,null,null,null,null,null,null,null,null,null,null,null,null,null,null,null,null,null,null,null,0,0,0,0,0,0,0,0,0,null,null,null,"أيلول"]
[null,null,40,"س 40",null,null,null,null,null,null,null,null,null,null,null,null,null,null,null,null,null,null,null,null,null,null,null,null,null,null,null,null,null,null,null,0,0,0,0,0,0,0,0,0,null,null,null,"تشرين الأول"]
[null,null,41,"س 41",null,null,null,null,null,null,null,null,null,null,null,null,null,null,null,null,null,null,null,null,null,null,null,null,null,null,null,null,null,null,null,0,0,0,0,0,0,0,0,0,null,null,null,"تشرين الثاني"]
[null,null,42,"س 42",null,null,null,null,null,null,null,null,null,null,null,null,null,null,null,null,null,null,null,null,null,null,null,null,null,null,null,null,null,null,null,0,0,0,0,0,0,0,0,0,null,null,null,"كانون الأول"]
[null,null,43,"س 43",null,null,null,null,null,null,null,null,null,null,null,null,null,null,null,null,null,null,null,null,null,null,null,null,null,null,null,null,null,null,null,0,0,0,0,0,0,0,0,0]
[null,null,44,"س 44",null,null,null,null,null,null,null,null,null,null,null,null,null,null,null,null,null,null,null,null,null,null,null,null,null,null,null,null,null,null,null,0,0,0,0,0,0,0,0,0]
[null,null,45,"س 45",null,null,null,null,null,null,null,null,null,null,null,null,null,null,null,null,null,null,null,null,null,null,null,null,null,null,null,null,null,null,null,0,0,0,0,0,0,0,0,0]
[null,null,46,"س 46",null,null,null,null,null,null,null,null,null,null,null,null,null,null,null,null,null,null,null,null,null,null,null,null,null,null,null,null,null,null,null,0,0,0,0,0,0,0,0,0]
[null,null,47,"س 47",null,null,null,null,null,null,null,null,null,null,null,null,null,null,null,null,null,null,null,null,null,null,null,null,null,null,null,null,null,null,null,0,0,0,0,0,0,0,0,0]
[null,null,48,"س 48",null,null,null,null,null,null,null,null,null,null,null,null,null,null,null,null,null,null,null,null,null,null,null,null,null,null,null,null,null,null,null,0,0,0,0,0,0,0,0,0]
[null,null,49,"س 49",null,null,null,null,null,null,null,null,null,null,null,null,null,null,null,null,null,null,null,null,null,null,null,null,null,null,null,null,null,null,null,0,0,0,0,0,0,0,0,0]
[null,null,50,"س 50",null,null,null,null,null,null,null,null,null,null,null,null,null,null,null,null,null,null,null,null,null,null,null,null,null,null,null,null,null,null,null,0,0,0,0,0,0,0,0,0]
[null,null,51,null,null,null,null,null,null,null,null,null,null,null,null,null,null,null,null,null,null,null,null,null,null,null,null,null,null,null,null,null,null,null,null,0,0,0,0,0,0,0,0,0]
[null,null,52,null,null,null,null,null,null,null,null,null,null,null,null,null,null,null,null,null,null,null,null,null,null,null,null,null,null,null,null,null,null,null,null,0,0,0,0,0,0,0,0,0]
[null,null,53,null,null,null,null,null,null,null,null,null,null,null,null,null,null,null,null,null,null,null,null,null,null,null,null,null,null,null,null,null,null,null,null,0,0,0,0,0,0,0,0,0]
[null,null,54,null,null,null,null,null,null,null,null,null,null,null,null,null,null,null,null,null,null,null,null,null,null,null,null,null,null,null,null,null,null,null,null,0,0,0,0,0,0,0,0,0]
[null,null,55,null,null,null,null,null,null,null,null,null,null,null,null,null,null,null,null,null,null,null,null,null,null,null,null,null,null,null,null,null,null,null,null,0,0,0,0,0,0,0,0,0]
[null,null,56,null,null,null,null,null,null,null,null,null,null,null,null,null,null,null,null,null,null,null,null,null,null,null,null,null,null,null,null,null,null,null,null,0,0,0,0,0,0,0,0,0]
[null,null,57,null,null,null,null,null,null,null,null,null,null,null,null,null,null,null,null,null,null,null,null,null,null,null,null,null,null,null,null,null,null,null,null,0,0,0,0,0,0,0,0,0]
[null,null,58,null,null,null,null,null,null,null,null,null,null,null,null,null,null,null,null,null,null,null,null,null,null,null,null,null,null,null,null,null,null,null,null,0,0,0,0,0,0,0,0,0]
[null,null,59,null,null,null,null,null,null,null,null,null,null,null,null,null,null,null,null,null,null,null,null,null,null,null,null,null,null,null,null,null,null,null,null,0,0,0,0,0,0,0,0,0]
[null,null,60,null,null,null,null,null,null,null,null,null,null,null,null,null,null,null,null,null,null,null,null,null,null,null,null,null,null,null,null,null,null,null,null,0,0,0,0,0,0,0,0,0]
[null,null,61,null,null,null,null,null,null,null,null,null,null,null,null,null,null,null,null,null,null,null,null,null,null,null,null,null,null,null,null,null,null,null,null,0,0,0,0,0,0,0,0,0]
[null,null,62,null,null,null,null,null,null,null,null,null,null,null,null,null,null,null,null,null,null,null,null,null,null,null,null,null,null,null,null,null,null,null,null,0,0,0,0,0,0,0,0,0]
[null,null,63,null,null,null,null,null,null,null,null,null,null,null,null,null,null,null,null,null,null,null,null,null,null,null,null,null,null,null,null,null,null,null,null,0,0,0,0,0,0,0,0,0]
[null,null,64,null,null,null,null,null,null,null,null,null,null,null,null,null,null,null,null,null,null,null,null,null,null,null,null,null,null,null,null,null,null,null,null,0,0,0,0,0,0,0,0,0]
[null,null,null,null,null,null,null,null,null,null,null,null,null,null,null,null,null,null,null,null,null,null,null,null,null,null,null,null,null,null,null,null,null,null,null,0,0,0,0,0,0,0,0,0]
[null,null,1,null,null,null,null,null,null,null,null,null,null,null,null,null,null,null,null,null,null,null,null,null,null,null,null,null,null,null,null,null,null,null,null,{"$f":"COUNTIF(E73:AI73,\"*\"&AJ$7&\"*\")","v":0},{"$f":"COUNTIF(E73:AI73,\"*\"&AK$7&\"*\")","v":0},{"$f":"COUNTIF(E73:AJ73,\"*\"&AL$7&\"*\")","v":0},{"$f":"COUNTIF(E73:AI73,\"*\"&AM$7&\"*\")","v":0},{"$f":"COUNTIF(E73:AI73,\"*\"&AN$7&\"*\")","v":0},{"$f":"COUNTIF(E73:AI73,\"*\"&AO$7&\"*\")","v":0},{"$f":"COUNTIF(E73:AI73,\"*\"&AP$7&\"*\")","v":0},{"$f":"COUNTIF(E73:AI73,\"*\"&AQ$7&\"*\")","v":0},{"$f":"COUNTIF(E73:AP73,\"*\"&AR$7&\"*\")","v":0}]

{"sheet":"خلاصة نهائية","index":1,"n_rows":71,"n_cols":120,"rows_kept":71,"cut":false,"hidden":false,"merged":[[4,111,4,119],[5,111,5,114],[5,115,5,119],[5,84,5,87],[5,88,5,92],[5,93,5,96],[5,97,5,101],[5,102,5,105],[5,106,5,110],[4,84,4,92],[4,93,4,101],[4,102,4,110],[5,79,5,83],[4,66,4,74],[5,48,5,51],[5,52,5,56],[4,57,4,65],[4,48,4,56],[4,75,4,83],[5,57,5,60],[5,61,5,65],[5,66,5,69],[5,70,5,74],[5,75,5,78],[5,12,5,15],[5,16,5,20],[4,21,4,29],[4,30,4,38],[4,39,4,47],[5,21,5,24],[5,25,5,29],[5,30,5,33],[5,34,5,38],[4,12,4,20],[5,39,5,42],[5,43,5,47],[5,3,5,6],[4,3,4,11],[5,7,5,11],[4,1,6,1],[4,2,6,2]]}
[]
[]
[null,null,"حزيران"]
[]
[null,"م","الاسم","كانون الثاني ",null,null,null,null,null,null,null,null,"شباط",null,null,null,null,null,null,null,null,"آذار",null,null,null,null,null,null,null,null,"نيسان",null,null,null,null,null,null,null,null,"أيار",null,null,null,null,null,null,null,null,"حزيران",null,null,null,null,null,null,null,null,"تموز",null,null,null,null,null,null,null,null,"آب",null,null,null,null,null,null,null,null,"أيلول",null,null,null,null,null,null,null,null,"تشرين الأول",null,null,null,null,null,null,null,null,"تشرين الثاني",null,null,null,null,null,null,null,null,"كانون الأول",null,null,null,null,null,null,null,null,"مجموع الغياب السنوي "]
[null,null,null,"المجموع الاجازات ",null,null,null,"العقوبات ",null,null,null,null,"المجموع الاجازات ",null,null,null,"العقوبات ",null,null,null,null,"المجموع الاجازات ",null,null,null,"العقوبات ",null,null,null,null,"المجموع الاجازات ",null,null,null,"العقوبات ",null,null,null,null,"المجموع الاجازات ",null,null,null,"العقوبات ",null,null,null,null,"المجموع الاجازات ",null,null,null,"العقوبات ",null,null,null,null,"المجموع الاجازات ",null,null,null,"العقوبات ",null,null,null,null,"المجموع الاجازات ",null,null,null,"العقوبات ",null,null,null,null,"المجموع الاجازات ",null,null,null,"العقوبات ",null,null,null,null,"المجموع الاجازات ",null,null,null,"العقوبات ",null,null,null,null,"المجموع الاجازات ",null,null,null,"العقوبات ",null,null,null,null,"المجموع الاجازات ",null,null,null,"العقوبات ",null,null,null,null,"المجموع الاجازات ",null,null,null,"العقوبات "]
[null,null,null,"عرضية","مرضية ","عدم صرف","سنوية","تنبيه","انذار","حسم","مغادرات","تأخير","عرضية","مرضية ","عدم صرف","سنوية","تنبيه","انذار","حسم","مغادرات","تأخير","عرضية","مرضية ","عدم صرف","سنوية","تنبيه","انذار","حسم","مغادرات","تأخير","عرضية","مرضية ","عدم صرف","سنوية","تنبيه","انذار","حسم","مغادرات","تأخير","عرضية","مرضية ","عدم صرف","سنوية","تنبيه","انذار","حسم","مغادرات","تأخير","عرضية","مرضية ","عدم صرف","سنوية","تنبيه","انذار","حسم","مغادرات","تأخير","عرضية","مرضية ","عدم صرف","سنوية","تنبيه","انذار","حسم","مغادرات","تأخير","عرضية","مرضية ","عدم صرف","سنوية","تنبيه","انذار","حسم","مغادرات","تأخير","عرضية","مرضية ","عدم صرف","سنوية","تنبيه","انذار","حسم","مغادرات","تأخير","عرضية","مرضية ","عدم صرف","سنوية","تنبيه","انذار","حسم","مغادرات","تأخير","عرضية","مرضية ","عدم صرف","سنوية","تنبيه","انذار","حسم","مغادرات","تأخير","عرضية","مرضية ","عدم صرف","سنوية","تنبيه","انذار","حسم","مغادرات","تأخير","عرضية","مرضية ","عدم صرف","سنوية","تنبيه","انذار","حسم","مغادرات","تأخير"]
[null,1,"س 1"]
[null,2,"س 2"]
[null,3,"س 3"]
[null,4,"س 4"]
[null,5,"س 5"]
[null,6,"س 6"]
[null,7,"س 7"]
[null,8,"س 8"]
[null,9,"س 9"]
[null,0,"س 10"]
[null,0,"س 11"]
[null,0,"س 12"]
[null,0,"س 13"]
[null,0,"س 14"]
[null,0,"س 15"]
[null,6,"س 16"]
[null,7,"س 17"]
[null,8,"س 18"]
[null,9,"س 19"]
[null,0,"س 20"]
[null,0,"س 21"]
[null,0,"س 22"]
[null,0,"س 23"]
[null,0,"س 24"]
[null,0,"س 25"]
[null,6,"س 26"]
[null,7,"س 27"]
[null,8,"س 28"]
[null,9,"س 29"]
[null,0,"س 30"]
[null,0,"س 31"]
[null,0,"س 32"]
[null,0,"س 33"]
[null,0,"س 34"]
[null,0,"س 35"]
[null,6,"س 36"]
[null,7,"س 37"]
[null,8,"س 38"]
[null,9,"س 39"]
[null,0,"س 40"]
[null,0,"س 41"]
[null,0,"س 42"]
[null,0,"س 43"]
[null,0,"س 44"]
[null,0,"س 45"]
[null,6,"س 46"]
[null,7,"س 47"]
[null,8,"س 48"]
[null,9,"س 49"]
[null,0,"س 50"]
[null,0]
[null,0]
[null,0]
[null,0]
[null,0]
[null,6]
[null,7]
[null,8]
[null,9]
[null,60]
[null,60]
[null,60]
[null,60]
[null,60]